Cogmind - Beta 15 @@@ ROGUE MODE // 2025.08.26 @ 19:07:09 Player: Naughtyusername Result: Destroyed by C-35 Carver with Carbide Saw Performance ------------- Evolutions (5) 2500 Regions Visited (20) 4000 Robots Destroyed (363) 1815 Value Destroyed (12239) 12239 Prototype IDs (28) 560 Alien Tech Used (0) 0 Bonus (5536) 5536 TOTAL SCORE: 26650 Bonus ------- High Alert Combat Kills 2316 Follower Combat Kills 1932 Network Hubs Disabled 200 Met Data Miner 300 Built Enhanced Grunts 300 A7 Reached Mainframe 300 Met R17 at Cetus 500 Friendly Fire -312 Cogmind --------- Core Integrity 0/1000 Matter 211/300 Energy 99/100 System Corruption 37% Temperature Cool (0) Movement Core (50) Location -5/Factory Parts ------- > --- POWER (2) -------- (None) > --- PROPULSION (6) --- (None) > --- UTILITY (6) ------ (None) > --- WEAPON (3) ------- (None) > --- INVENTORY (5) ---- Medium Storage Unit Matter Compressor (99) Long-range Tractor Beam Gauss Rifle Peak State ------------ > --- POWER ------------ Neutrino Core Quantum Reactor > --- PROPULSION ------- Titanium Leg Titanium Leg Titanium Leg Flexi-carbon Leg Armored Leg Enhanced Flexi-carbon Leg > --- UTILITY ---------- High-capacity Storage Unit Improved Signal Interpreter Core Analyzer Centrium Medium Armor Plating > --- WEAPON ----------- Advanced KE Penetrator Advanced KE Penetrator Advanced KE Penetrator > --- INVENTORY -------- Light Angular Momentum Engine Improved Cooling System High-capacity Matter Pod Matter Compressor Improved Sensor Array Advanced Targeting Computer Experimental Targeting Computer Centrium Medium Armor Plating Centrium Medium Armor Plating Centrium Medium Armor Plating Centrium Medium Armor Plating Centrium Medium Armor Plating Graphene Brace EM Disruption Field Improved Shield Generator Neutron Cannon Advanced KE Penetrator Scatter Rocket Array Plasma Cutter [Rating: 93] Favorites ----------- Power Cooled Ion Engine Engine Cooled Ion Engine Power Core Light Nuclear Core Reactor Quantum Reactor Propulsion Aluminum Leg Treads Light Treads Leg Aluminum Leg Wheel Compact Wheel Hover Unit Improved Gravmag System Flight Unit Cesium-ion Thruster Utility High-capacity Storage Unit Device Improved Sensor Array Storage High-capacity Storage Unit Processor Advanced Targeting Computer Hackware System Shield Protection Layered Light Armor Plating Weapon Enhanced Autogun Energy Gun EM Shotgun Energy Cannon Neutron Cannon Ballistic Gun Enhanced Autogun Ballistic Cannon Advanced Assault Cannon Launcher Grenade Launcher Special Weapon Plasma Cutter Piercing Weapon Lance Build | -11 -10 -10 -10 -8 -8 -7 -7 -7 -7 -6 -6 -6 -6 -6 -6 -6 -6 -5 -5 -5 ------- Run | Yrd Mat Min Sub Mat Sto Fac Low Low Dat Pro Fac Was Fac Ext Cet Arc Hub Fac Was Fac Slots Evolved 10 | . . . . 4 . 2 . . . . 2 . . . . . . 2 . . Power 1 | . . . . . . . . . . . 1 . . . . . . . . . Propulsion 4 | . . . . 1 . 2 . . . . 1 . . . . . . . . . Utility 4 | . . . . 2 . . . . . . . . . . . . . 2 . . Weapon 1 | . . . . 1 . . . . . . . . . . . . . . . . Parts Attached 238 | 7 10 4 2 31 20 40 4 1 1 2 7 2 13 14 5 . 8 32 1 34 Power 26 | 1 2 . . 4 1 3 . . . . 1 . 2 1 1 . . 7 . 3 Engine 18 | 1 2 . . 3 1 1 . . . . . . 2 . . . . 6 . 2 Core 7 | . . . . 1 . 2 . . . . 1 . . 1 . . . 1 . 1 Reactor 1 | . . . . . . . . . . . . . . . 1 . . . . . Propulsion 79 | 2 1 1 . 12 6 15 3 1 . 2 4 . 2 6 1 . 1 12 . 10 Treads 3 | . . . . . . . . . . . . . . 1 . . . 1 . 1 Leg 53 | 2 1 1 . 3 6 15 2 1 . 2 2 . 1 5 1 . 1 7 . 3 Wheel 12 | . . . . 6 . . . . . . 1 . 1 . . . . 4 . . Hover 3 | . . . . . . . . . . . . . . . . . . . . 3 Flight 8 | . . . . 3 . . 1 . . . 1 . . . . . . . . 3 Utility 63 | 2 2 2 . 8 6 10 . . . . 1 . 7 2 . . 4 6 . 13 Device 26 | 1 . 1 . 1 2 5 . . . . . . 4 1 . . 2 3 . 6 Storage 7 | 1 1 . . 2 . 1 . . . . . . . . . . . . . 2 Processor 13 | . 1 . . 2 1 2 . . . . . . 1 1 . . . 2 . 3 Hackware 1 | . . . . . . . . . . . . . . . . . . . . 1 Protection 16 | . . 1 . 3 3 2 . . . . 1 . 2 . . . 2 1 . 1 Artifact . | . . . . . . . . . . . . . . . . . . . . . Weapon 70 | 2 5 1 2 7 7 12 1 . 1 . 1 2 2 5 3 . 3 7 1 8 Energy Gun 4 | . 3 . . . . 1 . . . . . . . . . . . . . . Energy Cannon 4 | . . . . . . . . . . . . 2 . . . . . . . 2 Ballistic Gun 45 | 2 1 1 . 6 5 9 1 . . . . . . 1 3 . 3 7 1 5 Ballistic Cannon 7 | . . . 1 . . 1 . . 1 . 1 . . 3 . . . . . . Launcher 8 | . 1 . 1 1 1 1 . . . . . . 2 1 . . . . . . Special Weapon 1 | . . . . . 1 . . . . . . . . . . . . . . . Impact Weapon . | . . . . . . . . . . . . . . . . . . . . . Slashing Weapon . | . . . . . . . . . . . . . . . . . . . . . Piercing Weapon 1 | . . . . . . . . . . . . . . . . . . . . 1 Special Melee Weapon . | . . . . . . . . . . . . . . . . . . . . . Unidentified Prototypes 15 | . . . . 3 3 1 . . . 1 1 1 . 1 1 . 1 1 . 1 Corrupted Parts 3 | . . . . . . . . . . . . . . . 2 . . 1 . . System Corruption 7 | . . . . . . . . . . . . . . . 4 . . 3 . . Parts Lost 111 | . 3 . 6 5 2 29 . 1 . 4 2 . 1 4 . . 4 27 2 21 Power 17 | . 1 . 1 1 . 3 . . . . 1 . . . . . 1 6 . 3 Propulsion 47 | . . . 3 2 . 12 . . . 4 1 . 1 3 . . 2 12 . 7 Utility 20 | . 1 . . 1 2 4 . . . . . . . . . . 1 2 2 7 Weapon 27 | . 1 . 2 1 . 10 . 1 . . . . . 1 . . . 7 . 4 Highest Loss Streak 14 | . 3 . 4 2 1 14 . 1 . 4 2 . 1 2 . . 3 12 2 12 To Critical Strikes 4 | . . . . 1 . 1 . . . . . . . . . . . 2 . . Average Backups 17 | 1 11 14 14 16 19 18 18 19 19 18 19 20 19 20 19 20 19 17 12 5 Power . | . . 1 1 1 1 1 1 1 1 1 . . . . 1 1 1 1 . . Propulsion . | . . 1 . 2 2 . 1 1 1 1 . . . . . . . . 1 . Utility 11 | . 5 5 6 8 9 11 13 14 14 14 15 17 17 17 15 15 14 10 8 3 Weapon 3 | . 5 7 6 3 5 3 2 2 2 1 2 2 1 1 2 3 3 3 1 1 Tool/Special . | . . . . . . . . . . . . . . . . . . . . . Unused Backups 40 | . 1 . . 12 7 2 . . . . . . 1 2 4 . . . 9 2 Power 5 | . . . . 3 1 . . . . . . . . 1 . . . . . . Propulsion 2 | . . . . 1 . 1 . . . . . . . . . . . . . . Utility 25 | . . . . 8 2 1 . . . . . . 1 1 4 . . . 7 1 Weapon 6 | . 1 . . . 4 . . . . . . . . . . . . . 1 . Tool/Special 2 | . . . . . . . . . . . . . . . . . . . 1 1 Average Slot Usage (%) 92 | . 99 100 93 92 99 96 99 91 79 89 76 86 91 95 97 100 96 89 58 47 Engine 8 | . 14 14 13 6 9 4 7 7 7 7 6 6 10 12 4 . . 7 6 1 Leg 26 | . 28 28 26 3 26 35 35 38 38 35 20 26 26 27 38 40 37 23 6 5 Wheel 2 | . . . . 17 . . . . . . 5 6 6 4 . . . 1 10 . Device 5 | . 5 . 7 6 7 3 6 7 7 7 4 . 5 1 . . 3 4 3 7 Storage 7 | . 14 14 14 9 9 6 7 7 7 7 6 6 6 6 6 6 6 5 3 2 Processor 11 | . 8 5 . 5 7 11 15 15 15 15 13 13 13 18 20 20 12 13 10 4 Protection 4 | . . 7 4 12 12 6 . . . . 1 6 . . . . 3 8 3 . Energy Gun 2 | . 18 9 . . . . . . . . . . . . . . . . . . Ballistic Gun 13 | . 8 7 15 25 26 20 21 14 2 7 6 . . 2 8 20 18 15 9 2 Ballistic Cannon 3 | . . . 3 . . . 1 . . 7 8 6 12 14 10 . . . . . Peak Build Rating 93 | 7 10 10 10 36 43 53 39 37 39 44 55 57 67 70 87 87 93 91 66 91 Average Rating 42 | 5 8 8 9 25 40 44 36 34 31 40 48 56 60 64 74 87 86 77 42 50 On Entrance 41 | . 7 9 10 3 36 42 37 37 34 39 44 55 57 67 70 87 87 78 64 2 Naked Turns 69 | . . . . . . . . . . . . . . . . . . . 54 15 Heaviest Build 101 | 14 31 32 32 72 72 71 62 59 65 65 72 79 87 90 92 92 101 91 79 62 Greatest Support 115 | 20 20 25 25 35 49 87 55 63 63 68 81 81 101 115 115 115 115 99 48 90 Greatest Overweight (x) 10 | 4 1 1 6 10 2 4 1 1 1 1 4 . 4 1 . . . 4 1 2 Average Overweight (x) . | . . 1 . 1 1 . 1 . . . 2 . . . . . . . . . Largest Inventory Capacity 20 | 8 15 15 15 20 20 20 20 20 20 20 20 20 20 20 20 20 20 20 20 10 Average Capacity 18 | 7 14 15 15 17 20 19 20 20 20 20 20 20 20 20 20 20 20 20 14 7 Most Carried 20 | 2 15 15 15 20 20 20 20 20 20 19 20 20 20 20 20 20 20 20 20 10 Average Carried 17 | 1 11 14 14 16 19 18 19 20 19 18 19 20 19 19 19 20 19 17 14 5 Final Capacity 20 | 8 15 15 15 20 20 20 20 20 20 20 20 20 20 20 20 20 20 20 5 5 Final Carried 20 | 2 15 15 13 20 20 19 20 20 18 19 20 20 20 20 20 20 19 19 5 4 Class Distribution -------------------- 21% | Mutant 19% | Scavenger-Skirmisher 19% | Gunner 13% | Scavenger-Gunner 9% | Tank 6% | Commander-Gunner 3% | Scavenger-Mutant 3% | Scavenger-Tank Dominant Class ---------------- Mutant | -10/Materials Mutant | -10/Mines Mutant | -10/Subcaves Tank | -8/Materials Gunner | -8/Storage Gunner | -7/Factory Scavenger-Skirmisher | -7/Lower Caves Scavenger-Mutant | -7/Lower Caves Scavenger-Mutant | -7/Data Miner Scavenger-Skirmisher | -6/Proximity Caves Skirmisher | -6/Factory Scavenger-Gunner | -6/Waste Scavenger-Skirmisher | -6/Factory Commander-Gunner | -6/Extension Commander-Gunner | -6/Cetus Commander-Gunner | -6/Archives Scavenger-Gunner | -6/Hub_04(d) Scavenger-Tank | -5/Factory Scavenger-Gunner | -5/Waste Mutant | -5/Factory Resources | -11 -10 -10 -10 -8 -8 -7 -7 -7 -7 -6 -6 -6 -6 -6 -6 -6 -6 -5 -5 -5 ----------- Run | Yrd Mat Min Sub Mat Sto Fac Low Low Dat Pro Fac Was Fac Ext Cet Arc Hub Fac Was Fac Matter Collected 13790 | 277 224 134 166 1345 1696 2638 476 108 . 298 526 . 1084 541 384 81 547 2455 . 810 Remotely . | . . . . . . . . . . . . . . . . . . . . . Salvage Created 15319 | 97 533 97 141 1423 2022 3080 217 . . 264 352 . 1217 233 230 154 1868 2574 . 817 Parts 769 | 7 37 21 9 79 113 178 11 . . 12 7 . 37 8 15 8 65 116 . 46 Haulers Intercepted 21 | . 2 . . 2 6 3 . . . . . . 3 . . . 4 1 . . Recyclers Shooed 14 | . . 2 . 2 . 3 . . . . . . 3 . . . . 4 . . Parts Field Recycled . | . . . . . . . . . . . . . . . . . . . . . Retrieved Matter . | . . . . . . . . . . . . . . . . . . . . . Parts Self-Destructed 36 | . . . 10 . . . 7 1 . 18 . . . . . . . . . . Prevented . | . . . . . . . . . . . . . . . . . . . . . Kills | -11 -10 -10 -10 -8 -8 -7 -7 -7 -7 -6 -6 -6 -6 -6 -6 -6 -6 -5 -5 -5 ------- Run | Yrd Mat Min Sub Mat Sto Fac Low Low Dat Pro Fac Was Fac Ext Cet Arc Hub Fac Was Fac Combat Hostiles Destroyed 236 | . 13 3 3 27 32 50 5 . . 8 3 . 13 5 3 2 22 35 . 12 Melee 1 | . . . . . . . . . . . . . . . . . . . . 1 Guns 163 | . 9 . 2 24 32 42 5 . . . . . . . 1 2 10 27 . 9 Cannons 29 | . . . . . . 2 . . . 8 3 . 6 5 2 . . 2 . 1 AOE 42 | . 4 3 1 3 . 6 . . . . . . 7 . . . 12 6 . . Classes Destroyed 22 | 2 5 1 2 2 1 6 1 . . 1 . . . . . . 1 . . . Worker 23 | . 1 . . 2 2 4 . . . . 1 . . . . . 4 8 . 1 Builder 23 | . . 2 . 2 2 4 . . . . . . . 1 . . 4 4 . 4 Tunneler 7 | 2 1 3 . . . . . . . . . . . . . . 1 . . . Hauler 21 | . 2 . . 2 6 3 . . . . . . 3 . . . 4 1 . . Recycler 33 | 1 . . . 1 3 9 . . . . 2 . 6 . . . 3 7 . 1 Mechanic 1 | . . . . . . 1 . . . . . . . . . . . . . . Operator 2 | . . . . 1 . . . . . . . . . . . . 1 . . . Drone 1 | . . . . . . . . . . 1 . . . . . . . . . . Watcher 11 | . 1 . . 1 2 2 . . . . 1 . 1 . 1 . . 2 . . Swarmer 50 | . 6 3 . 7 4 10 . . . 2 . . 4 . . . . 9 . 5 Saboteur 1 | . . . . . . . . . . . . . . . . . 1 . . . Grunt 101 | . 7 . . 14 14 18 4 . . 5 2 . 5 2 . . 12 15 . 3 Brawler 6 | . . . . 1 . . . . . . 1 . 1 . . . 1 2 . . Duelist 1 | . . . . . . 1 . . . . . . . . . . . . . . Protector 1 | . . . . . . 1 . . . . . . . . . . . . . . Sentry 30 | . . . 1 5 13 3 . . . . . . 1 2 . 2 1 2 . . Specialist 4 | . . . . . . 3 . . . . . . . . . . 1 . . . Hunter 17 | . . . . . 1 4 . . . . . . . . . . 5 5 . 2 Programmer 17 | . . . . . . 9 . . . . . . 2 1 . . 1 2 . 2 Heavy 1 | . . . . . . 1 . . . . . . . . . . . . . . Cetus Guard 3 | . . . . . . . . . . . . . . . 3 . . . . . Enhanced Grunt 2 | . . . . . . . . . . . . . . . . . 2 . . . Subdweller 2 | . . . 2 . . . . . . . . . . . . . . . . . Thief 1 | . . . . . . . 1 . . . . . . . . . . . . . Thug 1 | . . . . . . . . . . . . . 1 . . . . . . . Savage 1 | . . . . . . . . . . . . . . . . . 1 . . . Guerrilla 2 | . . . . . . . . . . . . . . . 1 . 1 . . . Best Kill Streak 31 | 2 4 3 2 5 7 12 3 . . 4 4 . 9 3 2 2 31 14 . 8 Combat Bots Only 12 | . 3 3 2 3 6 10 3 . . 4 2 . 8 3 1 2 12 8 . 5 Max Kills in Single Turn 7 | 1 2 3 1 3 2 3 1 . . 1 1 . 3 3 1 1 7 7 . 2 Gunslinging 1 | . . . . . . 1 . . . . . . . . . . 1 1 . 1 Exploded 4 | . 2 3 1 3 . 3 . . . . . . 3 . . . 4 2 . . Melee 1 | . . . . . . . . . . . . . . . . . . . . 1 Uniques/NPCs Destroyed . | . . . . . . . . . . . . . . . . . . . . . Combat | -11 -10 -10 -10 -8 -8 -7 -7 -7 -7 -6 -6 -6 -6 -6 -6 -6 -6 -5 -5 -5 -------- Run | Yrd Mat Min Sub Mat Sto Fac Low Low Dat Pro Fac Was Fac Ext Cet Arc Hub Fac Was Fac Hostile Shots Fired 1749 | . 53 3 45 95 105 454 11 41 . 40 7 . 44 91 9 4 151 312 4 280 Missed 539 | . 18 1 21 21 32 142 4 18 . 14 2 . 8 27 4 2 55 77 2 91 Hits 1210 | . 35 2 24 74 73 312 7 23 . 26 5 . 36 64 5 2 96 235 2 189 Melee 15 | . . . . 1 . 1 1 . . . . . . . . . . 4 2 6 Projectile 1195 | . 35 2 24 73 73 311 6 23 . 26 5 . 36 64 5 2 96 231 . 183 AOE 4 | . . . . . . . . . . . . . . . . . . . . 4 Critical Strikes 50 | . 2 . . 4 3 14 1 . . 3 . . . . . . 1 7 2 13 Part Disruptions 2 | . . . . . . 1 . . . . . . . . . . . . . 1 Damage Taken 19875 | . 541 13 554 842 923 4306 108 280 . 500 173 . 444 590 73 50 1907 4066 72 4433 Core 2267 | . 53 . 140 119 84 499 . 45 . 19 . . 33 45 12 24 187 237 72 698 Absorbed by Shields 937 | . . . . 172 104 44 . . . . . . . 125 72 . . 342 . 78 Redirected to Shielding 36 | . . . 13 23 . . . . . . . . . . . . . . . . Regen/Repaired (Parts) 30 | . . . . . . . . . . . . . 30 . . . . . . . Core Remaining (%) 53 | 100 . . 22 . 63 . . . . 19 . . . . . . 64 . . . Volleys Fired 811 | 9 50 18 25 87 99 175 20 2 . 16 14 2 78 22 19 5 38 79 3 50 Largest 3 | 2 2 2 2 3 3 3 3 1 . 2 3 1 3 3 3 3 3 3 3 3 Hottest 170 | 40 90 45 40 85 65 119 93 28 . 78 108 90 170 170 144 105 105 125 81 150 Shots Fired 1981 | 18 97 28 34 259 300 471 40 3 . 31 41 2 141 53 43 13 103 201 10 93 Gun 1614 | 18 92 27 18 258 300 458 27 3 . 16 14 . . 1 9 13 97 187 10 66 Cannon 324 | . . . . . . 9 9 . . 15 27 2 138 52 34 . . 11 . 27 Launcher 39 | . 5 1 16 1 . 4 . . . . . . 3 . . . 6 3 . . Special 4 | . . . . . . . 4 . . . . . . . . . . . . . Kinetic 1781 | 18 40 20 18 256 300 462 36 3 . 31 41 . 91 49 43 13 97 187 10 66 Thermal 73 | . . . . . . 5 4 . . . . 2 47 4 . . . 11 . . Explosive 39 | . 5 1 16 1 . 4 . . . . . . 3 . . . 6 3 . . Electromagnetic 88 | . 52 7 . 2 . . . . . . . . . . . . . . . 27 Robot Hit Streak 34 | 3 8 7 7 13 15 26 10 1 . 6 11 . 17 7 6 7 6 30 31 34 Robot Miss Streak 13 | 2 7 4 2 4 4 4 2 1 . 2 2 . 4 5 3 2 13 2 . 6 Penetration Max 2 | . . . . . . 1 . . . . . . . 2 1 1 1 1 . 1 Secondary Targets 25 | . 2 . . 2 1 5 1 . . . . . . . . . 5 8 . 1 Max Gunslinging Chain 2 | . 1 . . 1 1 1 1 . . . . . . . . . 2 1 . 1 Shots Hit Robots 1222 | 7 49 19 12 174 171 279 22 1 . 22 33 . 86 30 17 6 64 168 1 61 Core Hits 756 | 4 30 9 6 71 70 142 11 . . 12 12 . 53 14 8 5 149 128 . 32 Critical Kills 16 | . . . . . 1 2 . . . . . . . 3 4 . 5 . . 1 Critical Parts Destroyed 22 | . . . . 3 . 4 . . . . . . . . 5 2 6 1 . 1 Critical Strikes 49 | . . . . 3 1 6 . . . . 5 . 2 5 11 2 11 1 . 2 Destroy 40 | . . . . 3 1 6 . . . . . . . 3 11 2 11 1 . 2 Blast 9 | . . . . . . . . . . . 5 . 2 2 . . . . . . Melee Attacks 16 | . . . . . . . . . . . . . . . . . . . . 16 Impact . | . . . . . . . . . . . . . . . . . . . . . Slashing . | . . . . . . . . . . . . . . . . . . . . . Piercing 16 | . . . . . . . . . . . . . . . . . . . . 16 Sneak Attacks 4 | . . . . . . . . . . . . . . . . . . . . 4 Combat Hostiles . | . . . . . . . . . . . . . . . . . . . . . Follow-up Attacks . | . . . . . . . . . . . . . . . . . . . . . Damage Inflicted 36423 | 87 1067 446 386 2598 3184 6834 378 19 . 620 812 . 3421 959 574 206 5651 6905 8 2268 Guns 19526 | 87 600 239 93 2436 3183 5571 331 19 . 187 253 . . 12 225 206 1491 3505 8 1080 Cannons 5805 | . . . . . . 86 24 . . 433 559 . 2506 947 349 . . 414 . 487 Explosions 10617 | . 467 207 293 162 . 1127 . . . . . . 901 . . . 4160 2986 . 314 Melee 383 | . . . . . . . . . . . . . . . . . . . . 383 Ramming 69 | . . . . . 1 50 . . . . . . 14 . . . . . . 4 Kinetic 23037 | 87 158 144 93 2408 3183 5597 355 19 . 620 812 . 1887 810 574 206 1491 3505 8 1080 Thermal 3568 | . 211 94 . . . 60 23 . . . . . 619 149 . . . 2098 . 314 Explosive 7886 | . 256 113 293 162 . 1127 . . . . . . 901 . . . 3732 1302 . . Electromagnetic 1480 | . 442 95 . 28 . . . . . . . . . . . . 428 . . 487 Impact . | . . . . . . . . . . . . . . . . . . . . . Slashing . | . . . . . . . . . . . . . . . . . . . . . Piercing 383 | . . . . . . . . . . . . . . . . . . . . 383 Highest Corruption 37 | . 3 3 3 . 2 14 14 14 14 14 . 6 6 6 10 10 12 4 23 37 Average Corruption 8 | . 2 3 3 . 1 7 14 14 14 14 . 6 4 3 7 10 10 1 14 23 Corruption Purged 6 | . . . . . . . . . . . . . 6 . . . . . . . Corruption Blocked . | . . . . . . . . . . . . . . . . . . . . . Effects 420 | . 9 15 9 . 26 58 63 31 4 38 . 3 30 30 14 6 14 11 9 50 Message Errors 92 | . 1 4 2 . 3 16 18 6 . 8 . 1 9 10 2 2 3 1 1 5 Matter Fused 102 | . 4 5 2 . 5 11 8 10 1 12 . 2 10 8 4 1 1 3 2 13 Heat Flow Errors 38 | . . 1 1 . 2 4 7 7 . 3 . . 1 4 2 . 1 2 . 3 Energy Discharges 43 | . . 3 2 . 2 6 5 3 1 6 . . . 3 3 . 2 . . 7 Parts Rejected 7 | . . . . . . 1 1 . . 1 . . . . . 1 . 1 . 2 Parts Fused 3 | . . . 1 . . . . . . 1 . . . . . . . . . 1 Data Loss (minor) 50 | . 1 1 1 . 2 8 11 4 2 5 . . 4 4 1 . 1 1 . 4 Data Loss (major) 22 | . . 1 . . 4 1 5 . . 1 . . 2 1 1 . . 2 1 3 Misfires 19 | . 2 . . . 4 3 2 1 . . . . 2 . 1 . 2 . 1 1 Alerts 14 | . 1 . . . 3 . 4 . . . . . . . . . 1 1 2 2 Misdirections 11 | . . . . . . 2 . . . . . . . . . . . . 2 7 Weapon Failures 19 | . . . . . 1 6 2 . . 1 . . 2 . . 2 3 . . 2 Overload Shots . | . . . . . . . . . . . . . . . . . . . . . Overflow Damage 609 | . 27 10 . . . . 4 . . . . . 29 23 . . 36 440 . 40 Projectiles 84 | . . . . . . . 4 . . . . . 29 23 . . . 26 . 2 Explosions 487 | . 27 10 . . . . . . . . . . . . . . 36 414 . . Melee 38 | . . . . . . . . . . . . . . . . . . . . 38 Knockbacks 16 | . . . . . . 2 . . . . 5 . 9 . . . . . . . Impact 1 | . . . . . . 1 . . . . . . . . . . . . . . Kinetic 15 | . . . . . . 1 . . . . 5 . 9 . . . . . . . Secondary . | . . . . . . . . . . . . . . . . . . . . . Self-Inflicted Damage 792 | . 47 . 24 23 . 61 . . . . . . 28 . . . 308 230 . 71 Shots 24 | . 1 . 1 1 . 3 . . . . . . 1 . . . 11 5 . 1 Rammed . | . . . . . . . . . . . . . . . . . . . . . Targets Rammed 6 | . . . . . 1 3 . . . . . . 1 . . . . . . 1 Kicked 6 | . . . . . 1 3 . . . . . . 1 . . . . . . 1 Crushed . | . . . . . . . . . . . . . . . . . . . . . Highest Temperature 444 | . 180 168 214 231 323 280 253 241 . 224 145 35 359 378 274 114 420 444 18 293 Average Temperature 78 | . 64 39 116 51 90 49 77 97 . 62 55 19 89 100 122 45 105 94 10 150 Received Heat Transfer 4471 | . 165 . 156 402 400 870 72 12 . 261 45 . 132 147 4 9 327 1214 . 255 Effects 6 | . . . . . 1 1 . . . . . . 1 1 1 . 1 . . . Shutdowns 2 | . . . . . . . . . . . . . . 1 . . 1 . . . Energy Bleed 2 | . . . . . 1 . . . . . . . . . 1 . . . . . Interference 2 | . . . . . . 1 . . . . . . 1 . . . . . . . Siege Activations . | . . . . . . . . . . . . . . . . . . . . . Martial Activations . | . . . . . . . . . . . . . . . . . . . . . Shielding Activations . | . . . . . . . . . . . . . . . . . . . . . Robots Disrupted . | . . . . . . . . . . . . . . . . . . . . . Combat Hostiles . | . . . . . . . . . . . . . . . . . . . . . Robots Corrupted 1 | . . . . . . . . . . . . . . . . . . . . 1 Combat Hostiles 1 | . . . . . . . . . . . . . . . . . . . . 1 Parts Fried 4 | . 1 . . . . . . . . . . . . . . . 1 . . 2 Impact Corruptions . | . . . . . . . . . . . . . . . . . . . . . Robots Melted . | . . . . . . . . . . . . . . . . . . . . . Combat Hostiles . | . . . . . . . . . . . . . . . . . . . . . Parts Melted 1 | . . . . . . . . . . . . . 1 . . . . . . . Heat Transferred 1985 | . 200 100 . . . 111 74 . . . . . . . . . . 1300 . 200 Parts Sabotaged . | . . . . . . . . . . . . . . . . . . . . . Parts Stolen . | . . . . . . . . . . . . . . . . . . . . . Parts Stripped . | . . . . . . . . . . . . . . . . . . . . . Power Chain Reactions 6 | . 2 . . . . . . . . . . . . . . . 1 2 . 1 Alert | -11 -10 -10 -10 -8 -8 -7 -7 -7 -7 -6 -6 -6 -6 -6 -6 -6 -6 -5 -5 -5 ------- Run | Yrd Mat Min Sub Mat Sto Fac Low Low Dat Pro Fac Was Fac Ext Cet Arc Hub Fac Was Fac Maximum Alert Level 4 | . . . . 1 2 3 . . . . . . 1 3 2 1 4 4 2 2 Low Security (%) 41 | 100 100 100 . 42 5 . . . . . 100 100 66 67 . . 15 . . 30 Level 1 26 | . . . . 57 29 42 . . . . . . 33 22 . 100 7 . . 69 Level 2 23 | . . . . . 65 40 . . . . . . . 1 100 . 2 61 100 . Level 3 5 | . . . . . . 16 . . . . . . . 8 . . 25 20 . . Level 4 2 | . . . . . . . . . . . . . . . . . 49 17 . . Level 5 . | . . . . . . . . . . . . . . . . . . . . . High Security . | . . . . . . . . . . . . . . . . . . . . . Max Security . | . . . . . . . . . . . . . . . . . . . . . Peak Influence 1452 | 5 173 99 . 370 665 853 . . . . 150 23 278 803 596 381 1404 1452 497 427 Initial 677 | . . 63 . . 149 287 . . . . 150 21 . 92 436 213 119 677 497 284 Average 307 | 1 22 16 . 192 453 484 . . . . 46 7 105 198 526 330 871 787 456 239 Influence Increases 11262 | 15 509 124 20 885 1070 1546 105 15 . 264 274 2 587 1457 360 178 1595 1529 . 727 Destroy 0b10 Robot/C 5520 | . 260 60 20 540 640 1020 80 . . 200 60 . 260 620 160 80 580 700 . 240 Destroy 0b10 Robot/NC 660 | 15 25 25 . 45 75 120 . . . 10 20 . 50 35 10 . 90 110 . 30 Destroy Leader 1188 | . 66 10 . 126 196 250 10 . . 20 12 . 68 84 . . 150 146 . 50 Allied During Kill 1245 | . . . . . . 11 . . . 34 . . . 624 164 80 332 . . . Successful Hack 222 | . 14 . . 9 31 53 . . . . . . 28 19 . . . 23 . 45 Disable Machine 765 | . 45 15 . 15 90 45 . . . . . . 90 30 15 15 75 270 . 60 Anti-Garrison Action 150 | . . . . . . . . . . . . . . . . . 150 . . . Destroy Structure 762 | . 69 14 . 15 23 17 . . . . 2 2 91 45 11 3 218 220 . 32 Advance Influence 150 | . . . . . . . . . . . 150 . . . . . . . . . Partial Spotted 15 | . . . . . . . . . . . . . . . . . . . . 15 Lose Combat Pursuer 585 | . 30 . . 135 15 30 15 15 . . 30 . . . . . . 60 . 255 Influence Decreases 10835 | 15 345 216 92 530 794 1330 837 130 . 264 213 63 398 866 606 371 552 1491 1015 707 Entered New Map 3806 | . . 101 38 . 206 344 315 23 . . . 40 . 97 344 321 222 707 925 123 Time Decay 5555 | 15 345 115 54 480 568 656 522 107 . 230 193 23 388 499 222 50 130 514 70 374 Lost Part 1004 | . . . . 50 20 290 . . . 34 20 . 10 40 . . 40 270 20 210 Lost Ally 320 | . . . . . . 40 . . . . . . . 80 40 . 160 . . . Purge Threat 150 | . . . . . . . . . . . . . . 150 . . . . . . Squads Dispatched 75 | . 3 . . 4 10 17 . . . . 2 . 9 3 . . 11 10 . 6 Investigation 21 | . 1 . . 2 4 5 . . . . 1 . 2 2 . . 1 3 . . Extermination 11 | . . . . . . 6 . . . . 1 . 2 . . . . 1 . 1 Reinforcement 31 | . 2 . . 2 1 5 . . . . . . 5 1 . . 7 3 . 5 Assault 7 | . . . . . 2 1 . . . . . . . . . . 2 2 . . Garrison 5 | . . . . . 3 . . . . . . . . . . . 1 1 . . Intercept . | . . . . . . . . . . . . . . . . . . . . . Searches Triggered . | . . . . . . . . . . . . . . . . . . . . . Data Miner Redirects 6 | . . . . . . . . . . . . . . 2 . . 1 3 . . Construction Impeded 7 | . . . . . . 1 . . . . . . . 1 . . 1 2 . 2 Haulers Reinforced 6 | . . . . . . 1 . . . . . . 2 . . . 2 1 . . Active Scanning Responses . | . . . . . . . . . . . . . . . . . . . . . Cargo Convoy Interrupts 1 | . . . . . . 1 . . . . . . . . . . . . . . Stealth | -11 -10 -10 -10 -8 -8 -7 -7 -7 -7 -6 -6 -6 -6 -6 -6 -6 -6 -5 -5 -5 --------- Run | Yrd Mat Min Sub Mat Sto Fac Low Low Dat Pro Fac Was Fac Ext Cet Arc Hub Fac Was Fac Distress Signals 22 | . 2 . . 1 4 5 . . . 1 1 . . 2 1 . 1 3 . 1 Communications Jammed . | . . . . . . . . . . . . . . . . . . . . . Distress Signals . | . . . . . . . . . . . . . . . . . . . . . Times Spotted 411 | . 24 3 5 44 37 85 6 5 . 8 7 3 21 25 6 7 32 52 6 35 Peak Tracking Total 11 | . 4 3 2 5 6 11 4 4 . 4 6 5 4 5 5 2 9 8 6 11 Tactical Retreats 29 | . 2 . . 6 1 1 1 1 . . 2 1 . . . . . 4 . 10 Traps | -11 -10 -10 -10 -8 -8 -7 -7 -7 -7 -6 -6 -6 -6 -6 -6 -6 -6 -5 -5 -5 ------- Run | Yrd Mat Min Sub Mat Sto Fac Low Low Dat Pro Fac Was Fac Ext Cet Arc Hub Fac Was Fac Traps Triggered 23 | . 5 . . 1 4 2 . . . . 2 . 2 2 . . 3 2 . . Indirectly 2 | . . . . . . . . . . . . . . . . . 2 . . . Trap Hack Attempts . | . . . . . . . . . . . . . . . . . . . . . Triggered . | . . . . . . . . . . . . . . . . . . . . . Disarmed . | . . . . . . . . . . . . . . . . . . . . . Reprogrammed . | . . . . . . . . . . . . . . . . . . . . . Reused . | . . . . . . . . . . . . . . . . . . . . . Traps Extracted . | . . . . . . . . . . . . . . . . . . . . . Installed . | . . . . . . . . . . . . . . . . . . . . . Triggered . | . . . . . . . . . . . . . . . . . . . . . Machines | -11 -10 -10 -10 -8 -8 -7 -7 -7 -7 -6 -6 -6 -6 -6 -6 -6 -6 -5 -5 -5 ---------- Run | Yrd Mat Min Sub Mat Sto Fac Low Low Dat Pro Fac Was Fac Ext Cet Arc Hub Fac Was Fac Machines Disabled 53 | . 3 1 . 1 6 3 . . . . . . 6 3 1 1 6 18 . 4 Max in Single Turn 15 | . 2 1 . 1 1 1 . . . . . . 2 . 1 1 4 15 . 2 Garrison Access 4 | . . . . . . . . . . . . . 1 . . . 1 1 . 1 Network Hub 1 | . . . . . . . . . . . . . . . . . 1 . . . Energy Cycler 1 | . . . . . . . . . . . . . . 1 . . . . . . Machines Repaired . | . . . . . . . . . . . . . . . . . . . . . Machines Dismantled 3 | . . . . . 2 . . . . . . . . . 1 . . . . . Machines Sabotaged . | . . . . . . . . . . . . . . . . . . . . . Overloaded Fab Kills . | . . . . . . . . . . . . . . . . . . . . . Hacking | -11 -10 -10 -10 -8 -8 -7 -7 -7 -7 -6 -6 -6 -6 -6 -6 -6 -6 -5 -5 -5 --------- Run | Yrd Mat Min Sub Mat Sto Fac Low Low Dat Pro Fac Was Fac Ext Cet Arc Hub Fac Was Fac Machines Accessed 66 | . 6 . . 4 11 6 2 . 4 . 4 . 8 10 . . . 6 . 5 Terminals 41 | . 6 . . 3 11 2 . . . . 2 . 3 9 . . . 2 . 3 Fabricators 4 | . . . . . . 1 . . . . . . 1 . . . . 2 . . Repair Stations 3 | . . . . . . . . . . . . . 1 . . . . 1 . 1 Recycling Units 7 | . . . . 1 . 2 . . . . 2 . 1 1 . . . . . . Scanalyzers 2 | . . . . . . 1 . . . . . . 1 . . . . . . . Garrison Access 3 | . . . . . . . . . . . . . 1 . . . . 1 . 1 Total Hacks 205 | . 18 . . 11 26 17 2 . 31 . 7 . 20 31 . . . 19 . 23 Successful 109 | . 10 . . 4 10 8 2 . 31 . 4 . 12 13 . . . 6 . 9 Failed 96 | . 8 . . 7 16 9 . . . . 3 . 8 18 . . . 13 . 14 Catastrophic 18 | . 1 . . 1 3 2 . . . . . . . 3 . . . 3 . 5 Database Lockouts . | . . . . . . . . . . . . . . . . . . . . . Manual 73 | . 14 . . . 5 2 . . . . 3 . 9 22 1 . . 5 . 12 Terminals 121 | . 18 . . 10 26 6 . . . . 4 . 8 28 . . . 4 . 17 Fabricators 13 | . . . . . . 2 . . . . . . 2 . . . . 9 . . Repair Stations 7 | . . . . . . . . . . . . . 3 . . . . 2 . 2 Recycling Units 15 | . . . . 1 . 6 . . . . 3 . 2 3 . . . . . . Scanalyzers 7 | . . . . . . 3 . . . . . . 4 . . . . . . . Garrison Access 9 | . . . . . . . . . . . . . 1 . . . . 4 . 4 Terminal Hacks 57 | . 3 . . 3 7 1 2 . 31 . . . 1 3 . . . 1 . 5 Record 12 | . . . . . . . 1 . 11 . . . . . . . . . . . Part Schematic 14 | . . . . . 1 . . . 13 . . . . . . . . . . . Robot Schematic 4 | . . . . . . . . . 4 . . . . . . . . . . . Robot Analysis 1 | . . . . . . . . . . . . . . . . . . . . 1 Prototype ID Bank 5 | . . . . . 1 . . . 3 . . . . . . . . . . 1 Open Door 4 | . . . . . 3 . 1 . . . . . . . . . . . . . Branch Access Points 2 | . . . . . . . . . . . . . 1 . . . . . . 1 Terminal Index 3 | . . . . . . 1 . . . . . . . 1 . . . . . 1 Alert Level 2 | . . . . . 1 . . . . . . . . 1 . . . . . . Unreport Threat 1 | . . . . . . . . . . . . . . 1 . . . . . . Locate Traps 1 | . . . . 1 . . . . . . . . . . . . . . . . Hauler Manifests 2 | . 1 . . . . . . . . . . . . . . . . . . 1 Registered Components 4 | . 1 . . 1 1 . . . . . . . . . . . . 1 . . Registered Prototypes 1 | . . . . 1 . . . . . . . . . . . . . . . . Zone Layout 1 | . 1 . . . . . . . . . . . . . . . . . . . Fabricator Hacks 4 | . . . . . . 1 . . . . . . . . . . . 3 . . Load Schematic 2 | . . . . . . . . . . . . . . . . . . 2 . . Build 2 | . . . . . . 1 . . . . . . . . . . . 1 . . Repair Station Hacks 1 | . . . . . . . . . . . . . 1 . . . . . . . Scan Component 1 | . . . . . . . . . . . . . 1 . . . . . . . Recycling Unit Hacks 7 | . . . . 1 . 2 . . . . 3 . . 1 . . . . . . Retrieve Components 7 | . . . . 1 . 2 . . . . 3 . . 1 . . . . . . Scanalyzer 6 | . . . . . . 2 . . . . . . 4 . . . . . . . Insert Component 2 | . . . . . . 1 . . . . . . 1 . . . . . . . Analyze 4 | . . . . . . 1 . . . . . . 3 . . . . . . . Garrison Access Hacks 3 | . . . . . . . . . . . . . 1 . . . . 1 . 1 Seal Access 3 | . . . . . . . . . . . . . 1 . . . . 1 . 1 Unauthorized Hacks 31 | . 7 . . . 3 2 . . . . 1 . 5 9 . . . 1 . 3 Terminals 27 | . 7 . . . 3 . . . . . 1 . 4 9 . . . . . 3 Track 5 | . . . . . . . . . . . 1 . 1 3 . . . . . . Botnet 13 | . 3 . . . . . . . . . . . 3 5 . . . . . 2 Operators 3 | . 1 . . . . . . . . . . . . 1 . . . . . 1 Skim 6 | . 3 . . . 3 . . . . . . . . . . . . . . . Fabricators 2 | . . . . . . 1 . . . . . . . . . . . 1 . . Prioritize 2 | . . . . . . 1 . . . . . . . . . . . 1 . . Repair Stations 1 | . . . . . . . . . . . . . 1 . . . . . . . Patch 1 | . . . . . . . . . . . . . 1 . . . . . . . Recycling Units 1 | . . . . . . 1 . . . . . . . . . . . . . . Reject 1 | . . . . . . 1 . . . . . . . . . . . . . . Scanalyzers . | . . . . . . . . . . . . . . . . . . . . . Garrison Access . | . . . . . . . . . . . . . . . . . . . . . Data Cores Recovered 1 | . . . . . . . . . . . . . . 1 . . . . . . Used . | . . . . . . . . . . . . . . . . . . . . . Hacking Detections 51 | . 6 . . 3 9 5 . . . . 3 . 6 9 . . . 5 . 5 Full Trace Events 14 | . . . . 1 3 5 . . . . 1 . 1 1 . . . 2 . . Feedback Events 1 | . . . . . . . . . . . . . . 1 . . . . . . Corruption 1 | . . . . . . . . . . . . . . 1 . . . . . . Feedback Blocked . | . . . . . . . . . . . . . . . . . . . . . Robot Schematics Acquired 4 | . . . . . . . . . 4 . . . . . . . . . . . Robots Built . | . . . . . . . . . . . . . . . . . . . . . Authchips . | . . . . . . . . . . . . . . . . . . . . . Time . | . . . . . . . . . . . . . . . . . . . . . Total Robot Build Rating . | . . . . . . . . . . . . . . . . . . . . . Part Schematics Acquired 16 | . . . . . 1 1 . . 13 . . . 1 . . . . . . . Parts Built 1 | . . . . . . . . . . . . . . . . . . 1 . . Authchips . | . . . . . . . . . . . . . . . . . . . . . Time 173 | . . . . . . 67 . . . . . . . . . . . 106 . . Total Part Build Rating 6 | . . . . . . . . . . . . . . . . . . 6 . . Parts Repaired . | . . . . . . . . . . . . . . . . . . . . . Time . | . . . . . . . . . . . . . . . . . . . . . Parts Recycled . | . . . . . . . . . . . . . . . . . . . . . Recycled Matter . | . . . . . . . . . . . . . . . . . . . . . Retrieved Matter . | . . . . . . . . . . . . . . . . . . . . . Retrieved Components 38 | . . . . 10 . 12 . . . . 6 . . 10 . . . . . . Parts Scanalyzed 2 | . . . . . . 1 . . . . . . 1 . . . . . . . Part Schematics Acquired 2 | . . . . . . 1 . . . . . . 1 . . . . . . . Parts Damaged . | . . . . . . . . . . . . . . . . . . . . . Bothacking | -11 -10 -10 -10 -8 -8 -7 -7 -7 -7 -6 -6 -6 -6 -6 -6 -6 -6 -5 -5 -5 ------------ Run | Yrd Mat Min Sub Mat Sto Fac Low Low Dat Pro Fac Was Fac Ext Cet Arc Hub Fac Was Fac Used RIF Installer . | . . . . . . . . . . . . . . . . . . . . . Robots Hacked . | . . . . . . . . . . . . . . . . . . . . . Non-combat . | . . . . . . . . . . . . . . . . . . . . . Combat . | . . . . . . . . . . . . . . . . . . . . . Robot Hacks Applied . | . . . . . . . . . . . . . . . . . . . . . Relay Couplers Released 2 | . . . . . . . . . . . . . . . . . 2 . . . Machine Destruction 2 | . . . . . . . . . . . . . . . . . 2 . . . Fabnet Peak Effective % . | . . . . . . . . . . . . . . . . . . . . . Robots Rewired 10 | . . . . . . . . . . . . . . 10 . . . . . . Allies Hacked . | . . . . . . . . . . . . . . . . . . . . . Hacks Repelled . | . . . . . . . . . . . . . . . . . . . . . Allies | -11 -10 -10 -10 -8 -8 -7 -7 -7 -7 -6 -6 -6 -6 -6 -6 -6 -6 -5 -5 -5 -------- Run | Yrd Mat Min Sub Mat Sto Fac Low Low Dat Pro Fac Was Fac Ext Cet Arc Hub Fac Was Fac Total Allies 25 | . . . . . 2 . . . . 1 . . . 17 5 . . . . . Largest Group 14 | . . . . . 2 2 . . . 1 . . . 13 14 13 12 . . . Highest-Rated Group 883 | . . . . . 62 62 . . . 96 . . . 560 883 844 685 . . . Highest-Rated Ally 159 | . . . . . 31 31 . . . 96 . . . 159 159 159 96 . . . Total Orders . | . . . . . . . . . . . . . . . . . . . . . Ally Attacks 304 | . . . . . . 22 . . . 21 . . . 148 28 23 62 . . . Total Damage 7575 | . . . . . . 315 . . . 611 . . . 3065 919 674 1991 . . . Kills 55 | . . . . . . 2 . . . 4 . . . 33 6 2 8 . . . Allies Corrupted . | . . . . . . . . . . . . . . . . . . . . . Allies Melted 1 | . . . . . . . . . . 1 . . . . . . . . . . Intel | -11 -10 -10 -10 -8 -8 -7 -7 -7 -7 -6 -6 -6 -6 -6 -6 -6 -6 -5 -5 -5 ------- Run | Yrd Mat Min Sub Mat Sto Fac Low Low Dat Pro Fac Was Fac Ext Cet Arc Hub Fac Was Fac Active Infowar (turns) 9489 | 27 1716 297 301 . . 839 1434 838 93 984 500 . 963 42 . . 37 880 10 528 Sensors 6336 | . . . . . . 27 1434 838 93 984 500 . 963 42 . . 37 880 10 528 Seismic 1776 | 27 618 18 301 . . 812 . . . . . . . . . . . . . . T.N.C. 1377 | . 1098 279 . . . . . . . . . . . . . . . . . . Robot Analysis Total 1 | . . . . . . . . . . . . . . . . . . . . 1 Derelict Logs Recovered 4 | . . . . . . . 1 1 . 2 . . . . . . . . . . Drone Launches . | . . . . . . . . . . . . . . . . . . . . . Drone Recoveries . | . . . . . . . . . . . . . . . . . . . . . Exploration | -11 -10 -10 -10 -8 -8 -7 -7 -7 -7 -6 -6 -6 -6 -6 -6 -6 -6 -5 -5 -5 ------------- Run | Yrd Mat Min Sub Mat Sto Fac Low Low Dat Pro Fac Was Fac Ext Cet Arc Hub Fac Was Fac Turns Passed 19232 | 136 1728 707 547 1694 1701 2449 1445 838 93 984 649 98 1424 1465 468 109 264 1409 153 871 Spaces Moved 10384 | 77 840 276 258 836 683 1307 725 550 76 543 378 76 941 787 258 52 88 673 182 778 Core 476 | 19 . . 1 18 . 2 . . . . . . . . . . . . 109 327 Treads . | . . . . . . . . . . . . . . . . . . . . . Legs 8448 | 58 840 276 257 89 683 1305 725 550 76 543 100 76 940 787 258 52 88 592 . 153 Wheels 1155 | . . . . 722 . . . . . . 278 . 1 . . . . 81 73 . Hover 172 | . . . . . . . . . . . . . . . . . . . . 172 Flight 133 | . . . . 7 . . . . . . . . . . . . . . . 126 Fastest Speed 29 | 50 120 190 120 80 190 120 190 120 120 120 120 120 120 120 125 125 125 108 50 29 Average Speed 147 | 128 184 190 184 133 198 138 190 151 120 170 148 120 121 145 125 125 125 155 76 73 Slowest Speed 600 | 250 190 190 350 600 265 330 190 190 190 190 190 120 190 190 126 125 126 330 115 195 Overloaded Moves . | . . . . . . . . . . . . . . . . . . . . . Propulsion Burnouts . | . . . . . . . . . . . . . . . . . . . . . Robots Hopped 1 | . . . . . . . . . . . . . . . . . . . . 1 Potential Cave-ins . | . . . . . . . . . . . . . . . . . . . . . Cave-ins Triggered . | . . . . . . . . . . . . . . . . . . . . . Exploration Rate (%) 51 | 4 96 50 11 52 92 28 84 72 68 68 11 68 23 84 66 65 13 18 91 22 Regions Visited 20 Branch Regions 11 Pre-discovered Areas 2 | . . 1 . . . . . . 1 . . . . . . . . . . . Known Exits Taken 10 | . . . . . . 1 1 1 1 1 . . 1 1 1 1 1 . . . Unknown Exits Taken 6 | 1 1 1 1 1 1 . . . . . . . . . . . . . . . Scrap Searched 9 | . . . . . . . 3 5 . 1 . . . . . . . . . . Spaces Dug 74 | . . . . 9 . . 3 . . . . 1 54 . . . . . . 7 Terrain Destroyed 820 | . 68 16 96 9 16 9 5 . . 7 2 2 105 8 9 3 347 102 . 16 Melee 7 | . . . . . . . . . . . . . . . . . . . . 7 Projectile 145 | . . . . . 16 . 5 . . 7 2 2 33 8 9 3 44 10 . 6 AOE 668 | . 68 16 96 9 . 9 . . . . . . 72 . . . 303 92 . 3 Terrain Rammed . | . . . . . . . . . . . . . . . . . . . . . Walls Destroyed . | . . . . . . . . . . . . . . . . . . . . . Machines Disabled . | . . . . . . . . . . . . . . . . . . . . . Actions | -11 -10 -10 -10 -8 -8 -7 -7 -7 -7 -6 -6 -6 -6 -6 -6 -6 -6 -5 -5 -5 --------- Run | Yrd Mat Min Sub Mat Sto Fac Low Low Dat Pro Fac Was Fac Ext Cet Arc Hub Fac Was Fac Total 12814 | 94 925 429 297 1297 879 1689 763 554 78 563 435 79 1077 1063 353 84 150 851 188 966 Wait 727 | . 5 126 4 260 19 75 1 . . . 25 . 12 80 39 27 1 16 . 37 Move 10364 | 76 839 275 257 835 682 1306 724 549 75 542 378 75 940 786 257 51 87 673 181 776 Hop 1 | . . . . . . . . . . . . . . . . . . . . 1 Pick Up 150 | 2 14 1 . 39 11 32 2 . . 1 6 . 5 3 7 . 2 14 1 10 Fast Attach 156 | 7 2 1 1 12 7 26 3 . 1 2 4 . 13 11 5 1 4 21 1 34 Attach 75 | . 3 . 3 11 2 22 1 . 1 1 3 . . . . . 2 13 . 13 Detach 33 | . 2 . 2 3 . 5 1 . . . . . 3 1 1 . 1 2 . 12 Swap 142 | . 7 6 4 14 17 23 6 1 . 1 1 2 14 6 4 . 11 24 1 . Drop 165 | . 3 2 1 36 25 22 4 2 1 . 4 . 11 12 12 . 4 9 1 16 Fire 811 | 9 50 18 25 87 99 175 20 2 . 16 14 2 78 22 19 5 38 79 3 50 Melee 16 | . . . . . . . . . . . . . . . . . . . . 16 Ram . | . . . . . . . . . . . . . . . . . . . . . Kick 6 | . . . . . 1 3 . . . . . . 1 . . . . . . 1 Crush . | . . . . . . . . . . . . . . . . . . . . . Escape Stasis 10 | . . . . . . . . . . . . . . 10 . . . . . . Rewire 133 | . . . . . . . 1 . . . . . . 132 . . . . . . Trap . | . . . . . . . . . . . . . . . . . . . . . Miscellaneous 25 | . . . . . 16 . . . . . . . . . 9 . . . . . Route ------- -11/Scrapyard -10/Materials (discovered 4 exits: [*Mat x3] / [*Min]) -10/Mines (discovered 2 exits: [*Mat] / [*Sub]) -10/Subcaves -8/Materials (discovered 2 exits: *Fac / *Sto) -8/Storage -7/Factory -7/Lower Caves -7/Lower Caves (discovered 2 exits: *Fac / *Dat) -7/Data Miner -6/Proximity Caves -6/Factory (discovered 2 exits: Low / *Ext) -6/Waste -6/Factory (discovered 5 exits: *Fac / Low x2 / *Ext x2) -6/Extension (discovered 3 exits: *Fac x2 / *Cet) -6/Cetus (discovered 2 exits: *Fac / *Arc) -6/Archives (discovered 2 exits: *Hub x2) -6/Hub_04(d) -5/Factory -5/Waste -5/Factory (discovered 2 exits: Upp x2) History --------- Turn | Location | Event 33 | -11/Scrapyard | Discovered new exit (range 15) 137 | -11/Scrapyard | Entered Materials 149 | -10/Materials | Discovered new exit (range 17) 306 | -10/Materials | Build established: Mutant 611 | -10/Materials | Discovered new exit (range 15) 711 | -10/Materials | Discovered new exit (range 10) 795 | -10/Materials | Lost 3 parts (1p1u1w) 1231 | -10/Materials | Discovered new exit (range 16) 1865 | -10/Materials | Entered Mines 1885 | -10/Mines | Met a Derelict bent on vengeance 2253 | -10/Mines | Discovered new exit (range 7) 2256 | -10/Mines | Learned location of Storage (-8) 2548 | -10/Mines | Discovered new exit (range 5) 2572 | -10/Mines | Entered Subcaves 2573 | -10/Subcaves | Approached by a straggling Scientist 2601 | -10/Subcaves | Shifting Twisted Machinery released Sub. Laser 2653 | -10/Subcaves | Shifting Twisted Machinery released Spk. Treads 2660 | -10/Subcaves | Discovered new exit (range 13) 2682 | -10/Subcaves | A swath of the cavern ceiling suddenly collapsed 3005 | -10/Subcaves | Ambushed by Subdweller buried in earth 3019 | -10/Subcaves | Ambushed by Subdweller buried in earth 3019 | -10/Subcaves | Ambushed by Subdweller buried in earth 3102 | -10/Subcaves | Core integrity fell below 50% 3119 | -10/Subcaves | Entered Materials 3119 | -8/Materials | Evolved 4 slots: Propulsion x1, Utility x2, Weapon x1 3150 | -8/Materials | Lost 4 parts (1p2n1w) 3431 | -8/Materials | Build established: Gunner 3902 | -8/Materials | Build established: Tank 3996 | -8/Materials | Discovered new exit (range 16) 4428 | -8/Materials | Discovered new exit (range 14) 4813 | -8/Materials | Entered Storage 5009 | -8/Storage | Garrison activated, responded to threat 5374 | -8/Storage | Build established: Gunner 5662 | -8/Storage | Discovered new exit (range 16) 5773 | -8/Storage | Build established: Tank 6113 | -8/Storage | Build established: Gunner 6471 | -8/Storage | Met a pair of Derelict thieves 6514 | -8/Storage | Entered Factory 6514 | -7/Factory | Accompanied by 2 allies 6514 | -7/Factory | Evolved 2 slots: Propulsion x2 6646 | -7/Factory | Discovered new exit (range 14) 7714 | -7/Factory | First assault squad dispatched 7852 | -7/Factory | Cargo convoy interrupted 7895 | -7/Factory | Core integrity fell below 50% 7933 | -7/Factory | Lost 14 parts (1p6n1u6w) 7941 | -7/Factory | Destroyed 10 combat bots 8032 | -7/Factory | System corruption reached 10% 8348 | -7/Factory | Build established: Scavenger-Gunner 8769 | -7/Factory | Lost 4 parts (1p2n1u) 8783 | -7/Factory | Identified exit to Lower Caves 8934 | -7/Factory | Lost 6 parts (3n1u2w) 8963 | -7/Factory | Entered Lower Caves 9251 | -7/Lower Caves | Build established: Scavenger-Skirmisher 9433 | -7/Lower Caves | Entered a destroyed Warlord outpost 9589 | -7/Lower Caves | Encountered a Warlord checkpoint 9926 | -7/Lower Caves | Learned Factory emergency access door positions 10257 | -7/Lower Caves | Discovered new exit (range 15) 10329 | -7/Lower Caves | Identified exit to Lower Caves 10408 | -7/Lower Caves | Entered another Lower Caves area 10414 | -7/Lower Caves | Discovered new exit (range 10) 10625 | -7/Lower Caves | Spotted B-75 Beast 10665 | -7/Lower Caves | Identified exit to Data Miner 11051 | -7/Lower Caves | Build established: Scavenger-Mutant 11246 | -7/Lower Caves | Entered Data Miner 11246 | -7/Data Miner | Discovered new exit (range 6) 11269 | -7/Data Miner | Met Data Miner 11293 | -7/Data Miner | Learned location of Section 7 (-2) 11293 | -7/Data Miner | Acquired the access code to Warlord's prototype stash 11308 | -7/Data Miner | Received God Mode back door access code from Data Miner 11336 | -7/Data Miner | Identified exit to Proximity Caves 11339 | -7/Data Miner | Entered Proximity Caves 11541 | -6/Proximity Caves | Escorted by Enhanced Grunt 11542 | -6/Proximity Caves | Spotter reported a threat 11625 | -6/Proximity Caves | Build established: Scavenger-Skirmisher 11925 | -6/Proximity Caves | Learned Factory machine intel 12154 | -6/Proximity Caves | Core integrity fell below 20% 12184 | -6/Proximity Caves | Lost 4 parts (4n) 12232 | -6/Proximity Caves | Discovered new exit (range 13) 12321 | -6/Proximity Caves | Identified exit to Factory 12323 | -6/Proximity Caves | Entered Factory 12323 | -6/Factory | Evolved 2 slots: Power x1, Propulsion x1 12324 | -6/Factory | Identified exit to Lower Caves 12326 | -6/Factory | Loaded intel: 294 machine locations 12797 | -6/Factory | Found Prototype Processor 12970 | -6/Factory | Discovered new exit (range 13) 12972 | -6/Factory | Sucked down chute 12972 | -6/Factory | Entered Waste 12987 | -6/Waste | EMP discharged 12998 | -6/Waste | Spotted C-40 Crusher 13001 | -6/Waste | Spotted C-40 Crusher 13004 | -6/Waste | Spotted C-40 Crusher 13028 | -6/Waste | Spotted C-40 Crusher 13031 | -6/Waste | Spotted C-40 Crusher 13055 | -6/Waste | Discovered new exit (range 13) 13069 | -6/Waste | Identified exit to Factory 13070 | -6/Waste | Entered Factory 13427 | -6/Factory | Allied Derelicts emerged from ambush trap array 13684 | -6/Factory | Found Scatter Rocket Array 13818 | -6/Factory | Discovered new exit (range 16) 13896 | -6/Factory | Destroyed 8 combat bots 13973 | -6/Factory | Identified exit to Extension 14494 | -6/Factory | Entered Extension 14558 | -6/Extension | Rescued A7 14565 | -6/Extension | Rescued a captive Derelict 14578 | -6/Extension | Rescued a captive Derelict 14607 | -6/Extension | Rescued a captive Derelict 14607 | -6/Extension | Rescued a captive Derelict 14627 | -6/Extension | Rescued a captive Derelict 14628 | -6/Extension | Rescued a captive Derelict 14819 | -6/Extension | Build established: Gunner 14841 | -6/Extension | Spotted B-75 Beast 14855 | -6/Extension | Spotted B-75 Beast 14857 | -6/Extension | Allies destroyed B-75 Beast 14868 | -6/Extension | Allies destroyed B-75 Beast 15129 | -6/Extension | Energy Cycler disabled 15129 | -6/Extension | Rescued a captive Derelict 15130 | -6/Extension | Rescued a captive Derelict 15131 | -6/Extension | Rescued a captive Derelict 15140 | -6/Extension | Rescued a captive Derelict 15170 | -6/Extension | Incoming investigation squad redirected 15400 | -6/Extension | Discovered new exit (range 14) 15757 | -6/Extension | Incoming investigation squad redirected 15780 | -6/Extension | Build established: Commander-Gunner 15864 | -6/Extension | Lost 3 allies 15892 | -6/Extension | Discovered new exit (range 10) 15893 | -6/Extension | Discovered new exit (range 6) 15903 | -6/Extension | Identified exit to Cetus 15959 | -6/Extension | Entered Cetus 15959 | -6/Cetus | Accompanied by 11 allies (A7) 15964 | -6/Cetus | Acquired a Cetus Manufacturing Module code from A7 15978 | -6/Cetus | Destroyed Cetus Guard 15998 | -6/Cetus | Spotted Cetus Guard 16016 | -6/Cetus | Destroyed Cetus Guard 16090 | -6/Cetus | Started Cetus Manufacturing Module 16115 | -6/Cetus | Manufactured an Enhanced Grunt 16124 | -6/Cetus | Escorted A7 to Cetus Mainframe 16140 | -6/Cetus | Manufactured an Enhanced Grunt 16165 | -6/Cetus | Manufactured an Enhanced Grunt 16190 | -6/Cetus | Manufactured an Enhanced Grunt 16215 | -6/Cetus | Manufactured an Enhanced Grunt 16231 | -6/Cetus | Discovered new exit (range 15) 16261 | -6/Cetus | Spotted Cetus Guard 16261 | -6/Cetus | Spotted Cetus Guard 16265 | -6/Cetus | Spotted Cetus Guard 16267 | -6/Cetus | Allies destroyed Cetus Guard 16271 | -6/Cetus | Allies destroyed Cetus Guard 16271 | -6/Cetus | Spotted Cetus Guard 16280 | -6/Cetus | Destroyed Cetus Guard 16285 | -6/Cetus | Allies destroyed Cetus Guard 16291 | -6/Cetus | Discovered new exit (range 16) 16299 | -6/Cetus | Met Revision 17 16307 | -6/Cetus | System corruption reached 10% 16390 | -6/Cetus | Identified exit to Archives 16427 | -6/Cetus | Entered Archives 16427 | -6/Archives | Accompanied by 13 allies (A7) 16432 | -6/Archives | Received a hacking code to weaken MAIN.C 16474 | -6/Archives | Discovered new exit (range 16) 16486 | -6/Archives | Discovered new exit (range 16) 16504 | -6/Archives | Identified exit to Hub_04(d) 16536 | -6/Archives | Entered Hub_04(d) 16536 | -6/Hub_04(d) | Accompanied by 12 allies 16544 | -6/Hub_04(d) | Discovered new exit (range 16) 16581 | -6/Hub_04(d) | Garrison activated, responded to threat 16581 | -6/Hub_04(d) | Identified exit to Factory 16617 | -6/Hub_04(d) | Incoming assault squad redirected 16631 | -6/Hub_04(d) | Murdered 3 allies 16661 | -6/Hub_04(d) | Lost 9 allies 16690 | -6/Hub_04(d) | Destroyed 12 combat bots 16783 | -6/Hub_04(d) | Network Hub disabled 16800 | -6/Hub_04(d) | Entered Factory 16800 | -5/Factory | Evolved 2 slots: Utility x2 16807 | -5/Factory | Identified Exp. Targeting Computer 16824 | -5/Factory | Lost 3 parts (1p1n1u) 17079 | -5/Factory | Build established: Scavenger-Tank 17276 | -5/Factory | Discovered new exit (range 5) 17281 | -5/Factory | Identified exit to Factory 17398 | -5/Factory | Garrison activated, responded to threat 17553 | -5/Factory | Destroyed 8 combat bots 17554 | -5/Factory | Lost 10 parts (3p4n2u1w) 17766 | -5/Factory | Build established: Scavenger-Gunner 17922 | -5/Factory | Incoming investigation squad redirected 17946 | -5/Factory | Incoming investigation squad redirected 17954 | -5/Factory | Incoming investigation squad redirected 18000 | -5/Factory | First assault squad dispatched 18044 | -5/Factory | Fabricated Med. Armored Exoskeleton? 18107 | -5/Factory | Lost 12 parts (2p5n5w) 18209 | -5/Factory | Sucked down chute 18209 | -5/Factory | Entered Waste 18224 | -5/Waste | EMP discharged 18224 | -5/Waste | System corruption reached 10% 18241 | -5/Waste | Spotted C-40 Crusher 18241 | -5/Waste | Spotted C-40 Crusher 18257 | -5/Waste | Spotted C-40 Crusher 18262 | -5/Waste | Spotted C-40 Crusher 18308 | -5/Waste | Released all parts (16) 18308 | -5/Waste | Spotted C-40 Crusher 18312 | -5/Waste | Spotted C-40 Crusher 18324 | -5/Waste | EMP discharged 18354 | -5/Waste | Discovered new exit (range 15) 18362 | -5/Waste | Entered Factory 18607 | -5/Factory | Build established: Mutant 18672 | -5/Factory | Identified exit to Upper Caves 19070 | -5/Factory | Core integrity fell below 50% 19117 | -5/Factory | Lost 12 parts (1p3n5u3w) 19195 | -5/Factory | System corruption reached 30% 19201 | -5/Factory | Core integrity fell below 20% 19233 | -5/Factory | Lost 5 parts (1p3n1u) 19233 | -5/Factory | Destroyed by C-35 Carver with Carbide Saw Last Messages --------------- 19194_ VTOL Module destroyed. 19200_ K-01 Serf destroyed. 19200_ Knocked back. 19200_ K-01 Serf destroyed. 19200_ C-35 Carver knocked back. 19201_ System corrupted: Slammed into wall. 19201_ VTOL Module destroyed. 19201_ System corrupted by crushing effect (+5). 19201_ Neutrino Reactor explodes. 19201_ Segregator Trap short circuited. 19201_ Arcs of energy rise from the floor. 19202_ VTOL Module destroyed. 19202_ Critical hit (Burn: +37). 19202_ K-01 Serf collects debris. 19204_ Adv. Targeting Computer severed. 19205_ System corrupted: Matter fused (-7). 19205_ K-01 Serf collects debris. 19218_ Targeting Computer severed. 19227_ System corrupted: IFF burst signal emitted. Map ----- +----------------------------------------------------+ | ?????????????????????????????????????????????????? | | ?????????????????????????????????????????????????? | | ?????????????????????????????????????????????????? | | ?????????????????????????????????????????????????? | | ?????????????????????????????????????????????????? | | ?????????????????????????????????????????????????? | | ?????????????????????????????????????????????????? | | ?????????????????????????????????????????????????? | | ?????????????????????????????????????????????????? | | ? ????? ?? ????????????????????????????????????? | | " """"? ? ???????????? ???????????????????????? | | """ ???????????? #####??????????????????? | | #??????????? #??????????????????? | | #??????????? #??????????????????? | | #??????????? +??????????????????? | | #??????????? #??????????????????? | | " """ """ ######?????? #??????????????????? | | " """ """ #?????#u k#??????????????????? | | """ """ #?????# #??????????????????? | | " #?????# #??????????????????? | | " """ """ #?????# #??????????????????? | | """ """ ####### #??????????????????? | | """ """ ##?????????????????? | | k T#?????????????????? | | c #?????????????????? | | ######## #####+########@ k##?????????????????? | | #??????# #?? ?????# #??????????????????? | | #????? # """ """ ???# u #??????????????????? | | ####### #### """ """ ?# #??????????????????? | | ## ???# """ """ ## #??????????????????? | | ##????# ## #??????????????????? | | #?????##############h #??????????????????? | | #??????????????????# R #??????????????????? | | #??????????????????# #??????????????????? | | / #??????????????????? h #??????????????????? | | +??????????????????? +??????????????????? | | === #??????????????????? #??????????????????? | | == #??????????????????? #??????????????????? | | == #???????????????????k #??????????????????? | | #??????????????????? ???????????????????? | | #??????????????????? ?????????????????????? | | ######???????????????????????????????????????????? | | ?????????????????????????????????????????????????? | | ?????????????????????????????????????????????????? | | ?????????????????????????????????????????????????? | | ?????????????????????????????????????????????????? | | ?????????????????????????????????????????????????? | | ?????????????????????????????????????????????????? | | ?????????????????????????????????????????????????? | | ?????????????????????????????????????????????????? | +----------------------------------------------------+ Best States ------------- Heat Dissipation 71 Energy Generation 39 Energy Capacity 565 Matter Stores 300 Matter Capacity 300 Sight Range 16 Robot Scan Range 15 Terrain Scan Density 10 Armor Coverage 600 Resistance: EM 20 Core Shielding 20 Evasion (%) 64 Targeting Accuracy 20 Core Analysis 6 Recoil Reduction 4 Kinecelleration 40 Salvage Targeting 1 Defensive Hacking 10 Item Schematics ----------------- Adv. Heat Sink | -8/Storage | Hacked Core Analyzer | -7/Factory | Scanalyzed Combat Drone Bay | -7/Data Miner | Free Lgt. Regenerative Plating | -7/Data Miner | Free Biomechanical Wings | -7/Data Miner | Free Gravity Neutralizer | -7/Data Miner | Free Scatter Rocket Array | -7/Data Miner | Free Med. Armored Exoskeleton | -7/Data Miner | Free Imp. Transmission Jammer | -7/Data Miner | Free Hvy. Phase Cannon | -7/Data Miner | Free System Guard | -7/Data Miner | Free Adv. Recoil Stabilizer | -7/Data Miner | Free Imp. Remote Datajack | -7/Data Miner | Free Phase Gun | -7/Data Miner | Free Imp. Linear Gravjet | -7/Data Miner | Free Graphene Brace | -6/Factory | Scanalyzed Robot Schematics ------------------ G-47 Trooper | -7/Data Miner | Free A-15 Conveyor | -7/Data Miner | Free H-55 Commando | -7/Data Miner | Free O-24 Administrator | -7/Data Miner | Free Fabricated ------------ Med. Armored Exoskeleton | x1 | -5/Factory Repaired ---------- Nothing Alien Tech Used ----------------- None Achievements -------------- None Challenges ------------ None Game ------ Seed BladePitchforkShield Manual? 0 Play Time 02:31:22 Cumulative 164.2 hours Start 2025.08.26 @ 00:06:18 End 2025.08.26 @ 19:07:09 Sessions 4 Manual Loads 0 Difficulty Rogue Special Mode None Game No. 73 Rogue 73 Adventurer 0 Explorer 0 Win Type - Total 5 Types 3/0/2/0/0/0/0/0/0/0 Lore% 78 Gallery% 67 Achievement% 78 Wizard Run 0 Options --------- Layout 2 ASCII 0 Keyboard 1 Movement Vi Keybinds 0 Fullscreen 1 Font 28/SwanstonBold Map View 50x52 Zoom Use 0% Tactical HUD 1 Map Filters NONE Filters NONE Steam 1 RUN: 4890b8d4-a7e4-4431-9f96-e37f7cd6dcab